Cogmind - Beta 10.1 @@@ ROGUE MODE // 2020.10.27 @ 19:54:25 Player: Atherys Result: Destroyed by G-34 Mercenary with Small Laser Performance ------------- Evolutions (0) 0 Regions Visited (2) 400 Robots Destroyed (24) 120 Value Destroyed (623) 623 Prototype IDs (0) 0 Alien Tech Used (0) 0 Bonus (67) 67 TOTAL SCORE: 1210 Bonus ------- Follower Combat Kills 67 Cogmind --------- Core Integrity 0/250 Matter 300/300 Energy 160/160 System Corruption 4% Temperature Cool (6) Movement Walking (120) Location -10/Mines Parts ------- > --- POWER (1) -------- Light Nuclear Core > --- PROPULSION (2) --- Aluminum Leg Aluminum Leg > --- UTILITY (2) ------ Heat Sink Visual Processing Unit > --- WEAPON (2) ------- Small Laser > --- INVENTORY (4) ---- Light Treads Small Laser Small Laser Datajack Peak State ------------ > --- POWER ------------ Light Nuclear Core > --- PROPULSION ------- Aluminum Leg Aluminum Leg > --- UTILITY ---------- Large Matter Pod Visual Processing Unit > --- WEAPON ----------- Particle Cannon Particle Cannon > --- INVENTORY -------- Light Treads Small Laser Small Laser Datajack [Rating: 12] Favorites ----------- Power Light Nuclear Core Engine Ion Engine Power Core Light Nuclear Core Propulsion Light Treads Treads Light Treads Leg Aluminum Leg Hover Unit Hover Unit Flight Unit Flight Unit Utility Visual Processing Unit Device Heat Sink Storage Large Matter Pod Processor Visual Processing Unit Weapon Particle Cannon Energy Gun Small Laser Energy Cannon Particle Cannon Ballistic Gun Light Assault Rifle Launcher Grenade Launcher Special Weapon Mining Laser Build | -11 -10 -10 ------- Run | Scr Mat Min Slots Evolved . | . . . Power . | . . . Propulsion . | . . . Utility . | . . . Weapon . | . . . Parts Attached 31 | 6 16 9 Power 3 | 1 1 1 Engine 1 | 1 . . Core 2 | . 1 1 Reactor . | . . . Propulsion 13 | 2 5 6 Treads 2 | 2 . . Leg 6 | . 2 4 Wheel . | . . . Hover 1 | . 1 . Flight 4 | . 2 2 Utility 4 | 1 2 1 Device 1 | . . 1 Storage 2 | 1 1 . Processor 1 | . 1 . Hackware . | . . . Protection . | . . . Artifact . | . . . Weapon 11 | 2 8 1 Energy Gun 4 | 2 1 1 Energy Cannon 4 | . 4 . Ballistic Gun 1 | . 1 . Ballistic Cannon . | . . . Launcher 1 | . 1 . Special Weapon 1 | . 1 . Impact Weapon . | . . . Slashing Weapon . | . . . Piercing Weapon . | . . . Special Melee Weapon . | . . . Unidentified Prototypes . | . . . Parts Lost 10 | . 6 4 Power 2 | . 1 1 Propulsion 2 | . 2 . Utility 1 | . . 1 Weapon 5 | . 3 2 Highest Loss Streak 3 | . 3 1 Average Slot Usage (%) 87 | . 86 90 Engine 5 | . 6 . Core 7 | . 6 13 Treads 7 | . 9 . Leg 6 | . 4 15 Hover 1 | . 1 . Flight 7 | . 6 8 Device 2 | . . 12 Storage 12 | . 14 . Processor 9 | . 8 14 Energy Gun 8 | . 10 . Energy Cannon 12 | . 10 23 Ballistic Gun 3 | . 3 . Naked Turns . | . . . Heaviest Build 16 | 11 16 16 Greatest Support 40 | 40 40 20 Greatest Overweight (x) 5 | . 5 4 Average Overweight (x) . | . 1 . Largest Inventory Capacity 6 | 6 6 4 Average Capacity 4 | 5 4 4 Most Carried 6 | 4 6 4 Average Carried 3 | . 3 4 Final Capacity 6 | 6 4 4 Final Carried 4 | . 4 4 Class Distribution -------------------- 78% | Mutant 21% | Scavenger-Mutant Dominant Class ---------------- Mutant | -10/Materials Scavenger-Mutant | -10/Mines Resources | -11 -10 -10 ----------- Run | Scr Mat Min Matter Collected 568 | 203 269 96 Remotely . | . . . Salvage Created 823 | . 620 203 Parts 47 | . 37 10 Haulers Intercepted . | . . . Recyclers Shooed . | . . . Parts Field Recycled . | . . . Retrieved Matter . | . . . Parts Self-Destructed . | . . . Prevented . | . . . Kills | -11 -10 -10 ------- Run | Scr Mat Min Combat Hostiles Destroyed 20 | . 14 6 Guns 7 | . 7 . Cannons 13 | . 7 6 Classes Destroyed 5 | . 4 1 Worker 2 | . 2 . Watcher 2 | . 2 . Swarmer 4 | . 3 1 Grunt 15 | . 11 4 Assembled 1 | . . 1 Best Kill Streak 4 | . 4 2 Combat Bots Only 4 | . 4 2 Max Kills in Single Turn 1 | . 1 1 Gunslinging . | . . . Exploded . | . . . Melee . | . . . Uniques/NPCs Destroyed . | . . . Combat | -11 -10 -10 -------- Run | Scr Mat Min Damage Taken 1097 | . 767 330 Core 257 | . 180 77 Absorbed by Shields . | . . . Core Remaining (%) 100 | 100 . . Volleys Fired 96 | . 78 18 Largest 2 | . 2 2 Hottest 168 | . 168 136 Shots Fired 158 | . 126 32 Gun 89 | . 88 1 Cannon 65 | . 34 31 Launcher 1 | . 1 . Special 3 | . 3 . Kinetic 29 | . 29 . Thermal 128 | . 96 32 Explosive 1 | . 1 . Electromagnetic . | . . . Robot Hit Streak 9 | . 9 5 Robot Miss Streak 5 | . 4 5 Penetration Max . | . . . Secondary Targets 1 | . 1 . Max Gunslinging Chain 1 | . 1 . Shots Hit Robots 88 | . 74 14 Core Hits 36 | . 29 7 Critical Hits . | . . . Critical Kills . | . . . Critical Parts Destroyed . | . . . Melee Attacks . | . . . Impact . | . . . Slashing . | . . . Piercing . | . . . Sneak Attacks . | . . . Combat Hostiles . | . . . Follow-up Attacks . | . . . Damage Inflicted 1266 | . 912 354 Guns 479 | . 479 . Cannons 784 | . 432 352 Explosions . | . . . Melee . | . . . Ramming 3 | . 1 2 Kinetic 133 | . 133 . Thermal 1130 | . 778 352 Explosive . | . . . Electromagnetic . | . . . Impact . | . . . Slashing . | . . . Piercing . | . . . Highest Corruption 4 | . 4 4 Average Corruption 2 | . 2 4 Corruption Purged . | . . . Effects 9 | . 3 6 Message Errors 4 | . 3 1 Matter Fused 1 | . . 1 Heat Flow Errors 1 | . . 1 Data Loss (minor) 1 | . . 1 Targeting Errors 2 | . . 2 Overload Shots . | . . . Overflow Damage 1 | . 1 . Projectiles 1 | . 1 . Explosions . | . . . Melee . | . . . Knockbacks . | . . . Impact . | . . . Kinetic . | . . . Secondary . | . . . Self-Inflicted Damage 1 | . . 1 Shots . | . . . Rammed 2 | . 1 1 Targets Rammed 2 | . 1 1 Kicked . | . . . Crushed . | . . . Highest Temperature 331 | . 331 218 Average Temperature 76 | . 73 85 Received Heat Transfer 537 | . 369 168 Effects 3 | . 3 . Interference 3 | . 3 . Siege Activations . | . . . Robots Corrupted . | . . . Combat Hostiles . | . . . Parts Fried . | . . . Impact Corruptions . | . . . Robots Melted . | . . . Combat Hostiles . | . . . Parts Melted . | . . . Heat Transferred 2206 | . 1577 629 Parts Sabotaged . | . . . Parts Stolen . | . . . Parts Stripped . | . . . Power Chain Reactions . | . . . Missiles Intercepted . | . . . Alert | -11 -10 -10 ------- Run | Scr Mat Min Peak Influence 213 | . 164 213 Initial 48 | . . 48 Average 70 | . 63 162 Maximum Alert Level 1 | . . 1 Low Security (%) 94 | 100 100 58 Level 1 5 | . . 41 Level 2 . | . . . Level 3 . | . . . Level 4 . | . . . Level 5 . | . . . High Security . | . . . Max Security . | . . . Squads Dispatched 3 | . 3 . Investigation 1 | . 1 . Extermination . | . . . Reinforcement 2 | . 2 . Assault . | . . . Garrison . | . . . Intercept . | . . . Construction Impeded . | . . . Haulers Reinforced . | . . . Stealth | -11 -10 -10 --------- Run | Scr Mat Min Distress Signals 2 | . 2 . Communications Jammed . | . . . Distress Signals . | . . . Times Spotted 44 | . 30 14 Peak Tracking Total 5 | . 5 3 Tactical Retreats 1 | . 1 . Traps | -11 -10 -10 ------- Run | Scr Mat Min Traps Triggered 2 | . 2 . Indirectly . | . . . Trap Hack Attempts . | . . . Triggered . | . . . Disarmed . | . . . Reprogrammed . | . . . Reused . | . . . Traps Extracted . | . . . Installed . | . . . Triggered . | . . . Machines | -11 -10 -10 ---------- Run | Scr Mat Min Machines Disabled . | . . . Max in Single Turn . | . . . Machines Sabotaged . | . . . Garrisons Compromised . | . . . Overloaded Fab Kills . | . . . Fab Network Shutdowns . | . . . Hacking | -11 -10 -10 --------- Run | Scr Mat Min Machines Accessed 1 | . 1 . Terminals . | . . . Fabricators . | . . . Repair Stations . | . . . Recycling Units 1 | . 1 . Scanalyzers . | . . . Garrison Access . | . . . Total Hacks 16 | . 16 . Successful 15 | . 15 . Failed 1 | . 1 . Catastrophic . | . . . Database Lockouts . | . . . Manual . | . . . Terminals . | . . . Fabricators . | . . . Repair Stations . | . . . Recycling Units 16 | . 16 . Scanalyzers . | . . . Garrison Access . | . . . Terminal Hacks . | . . . Fabricator Hacks . | . . . Repair Station Hacks . | . . . Recycling Unit Hacks 15 | . 15 . Recycle Component 7 | . 7 . Process 2 | . 2 . Report Inventory 3 | . 3 . Retrieve Matter 3 | . 3 . Scanalyzer . | . . . Garrison Access Hacks . | . . . Unauthorized Hacks . | . . . Terminals . | . . . Fabricators . | . . . Repair Stations . | . . . Recycling Units . | . . . Scanalyzers . | . . . Garrison Access . | . . . Data Cores Recovered . | . . . Used . | . . . Hacking Detections 1 | . 1 . Full Trace Events 1 | . 1 . Feedback Events . | . . . Feedback Blocked . | . . . Robot Schematics Acquired . | . . . Robots Built . | . . . Matter . | . . . Time . | . . . Total Robot Build Rating . | . . . Part Schematics Acquired . | . . . Parts Built . | . . . Matter . | . . . Time . | . . . Total Part Build Rating . | . . . Parts Repaired . | . . . Time . | . . . Parts Recycled 7 | . 7 . Recycled Matter 122 | . 122 . Retrieved Matter 122 | . 122 . Retrieved Components . | . . . Parts Scanalyzed . | . . . Part Schematics Acquired . | . . . Parts Damaged . | . . . Bothacking | -11 -10 -10 ------------ Run | Scr Mat Min Used RIF Installer . | . . . Robots Hacked . | . . . Non-combat . | . . . Combat . | . . . Robot Hacks Applied . | . . . Relay Couplers Released . | . . . Robots Rewired . | . . . Allies Hacked . | . . . Hacks Repelled . | . . . Allies | -11 -10 -10 -------- Run | Scr Mat Min Total Allies 1 | . . 1 Largest Group 1 | . . 1 Highest-Rated Group 31 | . . 31 Highest-Rated Ally 31 | . . 31 Total Orders . | . . . Ally Attacks 12 | . . 12 Total Damage 121 | . . 121 Kills 3 | . . 3 Allies Corrupted . | . . . Allies Melted . | . . . Intel | -11 -10 -10 ------- Run | Scr Mat Min Robot Analysis Total . | . . . Derelict Logs Recovered . | . . . Drone Launches . | . . . Drone Recoveries . | . . . Exploration | -11 -10 -10 ------------- Run | Scr Mat Min Turns Passed 2023 | 227 1504 292 Spaces Moved 1068 | 155 752 161 Core 171 | 33 136 2 Treads 342 | 122 220 . Legs 345 | . 225 120 Wheels . | . . . Hover 83 | . 83 . Flight 127 | . 88 39 Fastest Speed 50 | 50 60 117 Average Speed 154 | 136 164 125 Slowest Speed 300 | 160 300 280 Overloaded Moves . | . . . Propulsion Burnouts . | . . . Robots Hopped . | . . . Cave-ins Triggered . | . . . Exploration Rate (%) 26 | 7 52 21 Regions Visited 2 Branch Regions 1 Pre-discovered Areas 1 | . . 1 Known Exits Taken . | . . . Unknown Exits Taken 2 | 1 1 . Scrap Searched . | . . . Spaces Dug 3 | . 3 . Terrain Destroyed 8 | . 8 . Melee . | . . . Projectile 3 | . 3 . AOE 5 | . 5 . Terrain Rammed . | . . . Walls Destroyed . | . . . Machines Disabled . | . . . Actions | -11 -10 -10 --------- Run | Scr Mat Min Total 1277 | 170 890 217 Wait 43 | . 20 23 Move 1066 | 154 751 161 Hop . | . . . Pick Up 17 | 5 12 . Fast Attach 31 | 6 16 9 Attach . | . . . Detach 3 | . 3 . Swap . | . . . Drop 19 | 5 9 5 Fire 96 | . 78 18 Melee . | . . . Ram 2 | . 1 1 Kick . | . . . Crush . | . . . Escape Stasis . | . . . Rewire . | . . . Trap . | . . . Miscellaneous . | . . . Route ------- -11/Scrapyard -10/Materials (discovered 3 exits: [*Mat x2] / [*Min]) -10/Mines History --------- Turn | Location | Event 8 | -11/Scrapyard | Discovered new exit (range 14) 228 | -11/Scrapyard | Entered Materials 327 | -10/Materials | Build established: Mutant 1021 | -10/Materials | Lost 3 parts (1p1n1w) 1071 | -10/Materials | Core integrity fell below 50% 1330 | -10/Materials | Discovered new exit (range 8) 1417 | -10/Materials | Discovered new exit (range 17) 1711 | -10/Materials | Discovered new exit (range 14) 1732 | -10/Materials | Entered Mines 1743 | -10/Mines | Escorted by a lone wolf Derelict 1763 | -10/Mines | Learned location of Storage (-7) 1913 | -10/Mines | Excavation squad dispatched 1913 | -10/Mines | A large section of the Mines collapsed 1945 | -10/Mines | Core integrity fell below 20% 2024 | -10/Mines | Destroyed by G-34 Mercenary with Small Laser Last Messages --------------- 01995_ Particle Cannon destroyed. 01996_ T-07 Excavator is excavating. 01998_ K-01 Serf collects debris. 02000_ R-06 Scavenger collects Sml. Laser. 02001_ K-01 Serf collects debris. 02002_ Acquired Sml. Laser. 02002_ U-05 Engineer lays Concrete. 02003_ K-01 Serf collects debris. 02003_ R-06 Scavenger collects Com. Wheel. 02004_ K-01 Serf collects debris. 02004_ U-05 Engineer lays Concrete. 02004_ T-07 Excavator is excavating. 02006_ Acquired Aluminum Leg. 02006_ R-06 Scavenger collects Sml. Storage Unit. 02007_ Acquired 4 matter. 02007_ K-01 Serf collects debris. 02009_ Acquired 16 matter. 02013_ K-01 Serf collects debris. 02016_ K/ZONJCHMXMBMX3NRA5T 02017_ K-01 Serf collects debris. Map ----- +----------------------------------------------------+ | | | | | | | | | | | | | | | | | | | | | | | ?????????????????????????????????????????? | | ???????????????#########?????????????????? | | ??????????????## %#########?????????? | | ??????????????# % % #???#####?? | | ??????????????# ###### ##### ##? | | ??????????????## #???## ## #? | | ???????????????# ##???# #? | | ???????????????# ###????# # #? | | ???????????????## ##?????## ## #? | | ????????????????#####?????## ###### #? | | ??????????????????????????# #???## ##? | | ??????????????????????????# % ##????##?? | | ????????????????????????###r ##??????? | | ?????????????????????#### *= #??????? | | ????????????????????## @ #??????? | | ???????????????????## ##??????? | | ?????????????????## ## ##???????? | | ?????????????????# ??## ##????????? | | ?????????????????# ????# #?????????? | | ????????????????## ?????# = k #?????????? | | ????????????????# ?????##= t##?????????? | | ??????????# ???## #??????###g#??????????? | | ??????????# ### ##???????# #??????????? | | ??????????# = ###?????# #??????????? | | ??????????# =%| %=####### #########??? | | ???????????#% "%!!% =*% #??? | | ??????????## !== !% #?? | | ??????????# *####### #?? | | ?????????# [%%##?????? #? | | ??????? # # "####??????? ## #? | | ??????? # " " ### #???????? ##?? ##? | | ???????? ### ????????##???? #?? | | ??????????????## ?????????????????? | | ???????????????# #?????????????????? | | ???????????????# ###?????????????????? | | ??????????????# ????????????????????? | | ??????????????# ????????????????????? | | ?????????????? ????????????????????? | | ?????????????## ?????????????????????? | +----------------------------------------------------+ Best States ------------- Heat Dissipation 35 Energy Generation 14 Energy Capacity 250 Matter Stores 450 Matter Capacity 450 Sight Range 18 Terrain Scan Density 10 Evasion (%) 50 Recoil Reduction 2 Item Schematics ----------------- None Robot Schematics ------------------ None Fabricated ------------ Nothing Alien Tech Used ----------------- None Achievements -------------- Let's See Who's Tougher Challenges ------------ None Game ------ Seed ChargeThiefDiverter Manual? 0 Play Time 00:23:43 Cumulative 11.5 hours Start 2020.10.27 @ 19:30:45 End 2020.10.27 @ 19:54:25 Sessions 1 Manual Loads 0 Difficulty Rogue Special Mode None Game No. 13 Rogue 13 Adventurer 0 Explorer 0 Win Type - Total 0 Types 0/0/0/0/0/0/0/0/0 Lore% 19 Gallery% 17 Achievement% 17 Wizard Run 0 Options --------- ASCII 0 Keyboard 1 Movement Numpad Keybinds 0 Fullscreen 2 Font 18/SmallcapsGlow Map View 76x50 Tactical HUD 1 Map Filters NONE Filters NONE Steam X RUN: b60db699-61df-4895-a952-3896f85684fb